[Event "84th Georgian Championship 2025"]
[Site "Tbilisi"]
[Date "2025.02.04"]
[Round "2.1"]
[White "Gagunashvili, Merab"]
[Black "Quparadze, Giga"]
[Result "1-0"]
[Annotator "TA"]
[ECO "A35"]
[WhiteElo "2541"]
[BlackElo "2537"]
[PlyCount "25"]
[EventDate "2025.02.03"]
[EventType "tourn"]
[EventCountry "GEO"]
[SourceTitle "playchess.com"]
[Source "ChessBase"]
[SourceQuality "1"]
[TimeControl "40/5400+30:1800+30"]

{[%evp 15,25,4,10,0,0,0,7,-4,43,56,385,383]} 1. c4 {[%emt 0:00:03]} c5 {[%emt 0:00:05]} 2. Nf3 {[%emt 0:00:18]} Nc6 {[%emt 0:00:05]} 3. Nc3 {[%emt 0:00:14]} g6 {[%emt 0:00:06]} 4. e3 {[%emt 0:00:44]} Nf6 {[%emt 0:00:05]} 5. d4 {[%emt 0:00:28]} cxd4 {[%emt 0:00:06]} 6. exd4 {[%emt 0:00:03]} d5 {[%emt 0:00:05]} 7. cxd5 {[%emt 0:00:27]} Nxd5 {[%emt 0:00:05]} 8. Qb3 {[%emt 0:00:39]} e6 {[%emt 0:00:07] is the legacy move (8...Nxc3).} 9. Bc4 {[%emt 0:02:40] A35: Symmetrical English: 2 Nc3 Nc6 3 Nf3.} Na5 {[%emt 0:05:41]} 10. Bb5+ {[%emt 0:02:43]} Bd7 {[%emt 0:00:05]} 11. Qa4 {[%emt 0:01:25] Black must now prevent Nxd5.} Bxb5 $146 {[%emt 0:00:05]} (11... a6 $11 {is more appropriate.} 12. Bxd7+ Qxd7) (11... a6 12. Bxd7+ Qxd7 13. Qxd7+ Kxd7 14. Ne5+ Ke8 15. Bd2 Nc6 16. Nxc6 bxc6 17. Rc1 Kd7 {1-0 Dragun,K (2579)-Preotu,R (2473) Pan American Intercollegiate-chT 2022 (5.1)}) 12. Qxb5+ $14 {[%emt 0:01:12]} Qd7 $2 {[%emt 0:00:07][%mdl 8192] [#] A sharp opening} (12... Nc6 $14) 13. Nxd5 $1 {[%emt 0:03:16] White took control after the opening.   Weighted Error Value: White=0.03 (flawless) /Black=0.96  Loses game:     	---       	Black=1      Mistake:       	---       	Black=1      OK:         	White=1     	Black=1      Best:        	---       	Black=1      Strong:       	White=1     	---} 1-0

[Event "84th Georgian Championship 2025"]
[Site "Tbilisi"]
[Date "2025.02.04"]
[Round "2.2"]
[White "Kacharava, Nikolozi"]
[Black "Nigalidze, Gaioz"]
[Result "1-0"]
[Annotator "TA"]
[ECO "C42"]
[WhiteElo "2524"]
[BlackElo "2378"]
[PlyCount "141"]
[EventDate "2025.02.03"]
[EventType "tourn"]
[EventCountry "GEO"]
[SourceTitle "playchess.com"]
[Source "ChessBase"]
[SourceQuality "1"]
[TimeControl "40/5400+30:1800+30"]

{[%evp 14,141,16,10,19,13,27,13,25,26,21,15,23,17,16,6,4,20,17,15,23,-11,19,7,9,15,18,5,23,21,22,22,18,13,7,5,28,17,45,0,0,0,39,34,42,22,60,42,46,43,46,39,40,38,66,58,65,70,68,62,100,58,79,75,71,16,15,12,18,0,33,43,43,39,104,54,49,49,58,72,67,79,75,63,123,110,116,100,99,95,93,48,47,53,47,46,46,42,189,187,258,234,298,301,408,342,561,550,711,702,795,770,677,678,630,604,911,899,3479,2064,5065,5061,29983,29984,29984,29985,29985,29986,29985,29984]} 1. e4 {[%emt 0:00:03]} e5 {[%emt 0:00:05]} 2. Nf3 {[%emt 0:01:49]} Nf6 {[%emt 0:00:11]} 3. Nxe5 {[%emt 0:02:30]} d6 {[%emt 0:00:31]} 4. Nf3 {[%emt 0:02:54]} Nxe4 {[%emt 0:00:09]} 5. Qe2 {[%emt 0:00:41]} Qe7 {[%emt 0:00:18]} 6. d3 {[%emt 0:00:53]} Nf6 {[%emt 0:00:19]} 7. Nc3 {[%emt 0:02:24]} Qxe2+ {[%emt 0:00:44]} 8. Bxe2 {[%emt 0:00:10]} Be7 {[%emt 0:00:09] C42: Petroff Defence: 3 Nxe5 and unusual White 3rd moves.} 9. Bf4 {[%emt 0:01:58]} O-O {[%emt 0:08:43]} 10. h3 {[%emt 0:00:51]} c6 {[%emt 0:01:50] The position is equal.} 11. g4 $146 {[%emt 0:02:49]} (11. O-O-O Na6 12. g4 Nc5 {½-½ Lazic,M (2307)-Petrovic,A (2250) Pozarevac Rudar IM 10 2024 (2)}) 11... d5 {[%emt 0:01:36]} 12. O-O-O {[%emt 0:06:48]} Ne8 {[%emt 0:12:48]} 13. d4 {[%emt 0:07:59]} Bd6 {[%emt 0:01:36]} 14. Ne5 {[%emt 0:09:44][%cal Bf3e5,Be5d3,Bd3f4][%mdl 32]} Nd7 {[%emt 0:04:46]} 15. Nd3 {[%emt 0:02:18]} Bxf4+ {[%emt 0:05:25]} 16. Nxf4 {[%emt 0:00:03]} Nd6 {[%emt 0:00:52]} 17. Bd3 {[%emt 0:11:56]} Re8 {[%emt 0:02:10]} 18. Rde1 {[%emt 0:01:55]} Rxe1+ {[%emt 0:01:47]} 19. Rxe1 {[%emt 0:00:02]} Nf8 {[%emt 0:00:27]} 20. Kd2 {[%emt 0:06:01]} Bd7 {[%emt 0:01:56]} 21. f3 {[%emt 0:02:42]} Re8 {[%emt 0:02:52]} 22. Nce2 {[%emt 0:01:27]} Ne6 {[%emt 0:10:35]} 23. Nxe6 {[%emt 0:04:41]} Rxe6 {[%emt 0:02:36]} 24. Rh1 {[%emt 0:06:30]} Rf6 {[%emt 0:11:23]} 25. Ke3 {[%emt 0:03:25]} Re6+ {[%emt 0:00:17]} 26. Kd2 {[%emt 0:00:05]} Rf6 {[%emt 0:00:14]} 27. Ke3 {[%emt 0:00:05]} Re6+ {[%emt 0:00:06]} 28. Kf2 {[%emt 0:00:52]} Rf6 {[%emt 0:00:51]} 29. a4 {[%emt 0:02:47][%cal Ba2a4,Ba4a5][%mdl 32]} Re6 {[%emt 0:06:21]} 30. a5 {[%emt 0:00:49]} Re8 {[%emt 0:00:50]} 31. Nf4 {[%emt 0:02:03]} h6 {[%emt 0:01:24]} 32. h4 {[%emt 0:01:14]} g6 {[%emt 0:00:59]} 33. b3 {[%emt 0:01:31]} b5 {[%emt 0:09:26]} 34. axb6 {[%emt 0:04:56]} axb6 {[%emt 0:00:02]} 35. Ra1 {[%emt 0:00:05] Against Ra8} Rb8 {[%emt 0:04:58]} 36. Ra7 {[%emt 0:02:48]} Be8 {[%emt 0:01:36]} 37. Be2 {[%emt 0:03:49] White has more active pieces.} Rb7 {[%emt 0:04:07]} 38. Ra8 {[%emt 0:00:39][%csl Oe8] Black has a bad bishop} Kf8 {[%emt 0:00:39]} 39. Ke3 {[%emt 0:02:34]} (39. Ba6 $16 Rc7 40. Bd3) 39... g5 $11 {[%emt 0:02:41]} 40. hxg5 {[%emt 0:00:00]} hxg5 {[%emt 0:00:00]} 41. Nh5 {[%emt 0:13:14]} Ke7 {[%emt 0:05:23]} 42. Ng3 {[%emt 0:01:52]} c5 {[%emt 0:09:57]} 43. Bd3 {[%emt 0:05:12]} Kf6 {[%emt 0:07:34] [#]} (43... f6 $14) 44. c3 {[%emt 0:03:12]} (44. f4 $1 $16) 44... Re7+ $14 {[%emt 0:01:06]} 45. Kd2 {[%emt 0:00:27]} cxd4 {[%emt 0:00:25]} 46. cxd4 {[%emt 0:00:19]} Rc7 {[%emt 0:00:38]} 47. Ra1 {[%emt 0:01:55]} Ke7 {[%emt 0:08:11]} 48. Re1+ {[%emt 0:00:36]} Kd7 {[%emt 0:02:14] [#]} (48... Kd8 $1 $14) 49. Nh5 $1 $16 {[%emt 0:00:30]} Ra7 {[%emt 0:00:32]} 50. Re5 {[%emt 0:04:19]} Ra2+ {[%emt 0:00:14]} 51. Kc3 {[%emt 0:01:03]} Kc7 {[%emt 0:00:40]} 52. Rxg5 {[%emt 0:03:00][%cal Oh5f4]} Rf2 {[%emt 0:00:21]} 53. Nf4 {[%emt 0:01:01]} (53. Rxd5 Rxf3 54. Kd2 f5 $11) 53... Rxf3 {[%emt 0:00:47]} 54. Nxd5+ {[%emt 0:00:01]} Kb7 {[%emt 0:00:35]} 55. Re5 {[%emt 0:00:37] aiming for Re3. Wards off Ne4+} Bb5 {[%emt 0:00:27] Black cannot hold the game after this.} ({Black should try} 55... Bc6 $14) 56. Re7+ $18 {[%emt 0:00:23]} Kc8 {[%emt 0:00:19]} (56... Kb8 $142) 57. Re3 $1 {[%emt 0:01:52]} (57. Nxb6+ $2 {perishes.} Kd8 58. Kb4 Rxd3 $19 (58... Bxd3 59. Rd7+ Ke8 60. Rxd6 $16)) 57... Rxe3 {[%emt 0:00:28]} 58. Nxe3 {[%emt 0:00:01][%mdl 4096] Endgame KBN-KBN. White is a pawn up.} Bc6 {[%emt 0:00:45]} 59. d5 {[%emt 0:00:59][%cal Bd4d5,Bd5d6][%mdl 32]} Be8 {[%emt 0:00:31]} (59... Bd7 {was worth a try.} 60. g5 Ne8) 60. g5 {[%emt 0:00:15]} Kd8 {[%emt 0:00:13]} 61. Kd4 {[%emt 0:00:07]} Bd7 {[%emt 0:00:39]} 62. Ke5 {[%emt 0:00:37]} Ke7 {[%emt 0:00:06]} 63. Nc4 {[%emt 0:00:35]} Nc8 {[%emt 0:00:12]} 64. d6+ {[%emt 0:01:18]} Ke8 {[%emt 0:00:35]} 65. Ne3 {[%emt 0:00:15]} Be6 {[%emt 0:00:55]} 66. Bb5+ {[%emt 0:01:35]} Kd8 {[%emt 0:00:20]} 67. Bc4 {[%emt 0:00:32]} Kd7 {[%emt 0:00:41]} 68. Bxe6+ {[%emt 0:00:55] White mates.} fxe6 {[%emt 0:00:02]} 69. Nc4 {[%emt 0:00:43]} b5 {[%emt 0:00:06][%cal Bb6b5,Bb5c4][%mdl 32] [#]} 70. g6 $1 {[%emt 0:00:10][%cal Bg5g6,Bg6g7][%mdl 32]} bxc4 {[%emt 0:00:19]} 71. g7 {[%emt 0:00:04] Weighted Error Value: White=0.09 (flawless) /Black=0.26 (precise)   Mistake:       	White=2     	Black=5      Inaccurate:     	White=4     	Black=7      OK:         	White=23    	Black=15     Best:        	White=3     	Black=5      Strong:       	White=2     	---} 1-0

[Event "84th Georgian Championship 2025"]
[Site "Tbilisi"]
[Date "2025.02.04"]
[Round "2.3"]
[White "Mchedlishvili, Mikheil"]
[Black "Petriashvili, Nikoloz"]
[Result "1/2-1/2"]
[Annotator "TA"]
[ECO "E14"]
[WhiteElo "2568"]
[BlackElo "2450"]
[PlyCount "65"]
[EventDate "2025.02.03"]
[EventType "tourn"]
[EventCountry "GEO"]
[SourceTitle "playchess.com"]
[Source "ChessBase"]
[SourceQuality "1"]
[TimeControl "40/5400+30:1800+30"]

{[%evp 23,65,60,60,44,49,67,68,77,94,81,94,32,47,50,52,52,54,55,46,48,49,33,53,32,50,60,64,56,60,17,59,30,54,56,50,50,57,36,79,26,82,0,16,0]} 1. Nf3 {[%emt 0:00:06]} Nf6 {[%emt 0:00:12]} 2. c4 {[%emt 0:00:50]} e6 {[%emt 0:00:31]} 3. d4 {[%emt 0:02:06]} Bb4+ {[%emt 0:00:03]} 4. Nbd2 {[%emt 0:01:58]} b6 {[%emt 0:00:12]} 5. e3 {[%emt 0:03:05]} O-O {[%emt 0:01:38]} 6. Bd3 {[%emt 0:00:51]} d5 {[%emt 0:00:02]} 7. O-O {[%emt 0:01:01]} Bb7 {[%emt 0:00:23]} 8. a3 {[%emt 0:01:40]} Bd6 {[%emt 0:00:30]} 9. b4 {[%emt 0:01:50]} c5 {[%emt 0:00:07]} 10. cxd5 {[%emt 0:06:23]} exd5 {[%emt 0:10:33]} 11. bxc5 {[%emt 0:02:38]} bxc5 {[%emt 0:00:02]} 12. dxc5 {[%emt 0:01:06]} Bxc5 {[%emt 0:00:04]} 13. Rb1 {[%emt 0:00:41]} Bb6 {[%emt 0:00:52]} 14. Bb2 {[%emt 0:09:12]} Nbd7 {[%emt 0:02:29]} 15. Nb3 {[%emt 0:06:36] White is more active. White is slightly better.} Rc8 {[%emt 0:03:02]} 16. a4 {[%emt 0:01:42][%cal Oa4a5]} Ba8 {[%emt 0:02:01]} 17. Nbd4 {[%emt 0:09:00]} (17. Nfd4 $16) 17... Ne4 $14 {[%emt 0:01:57]} 18. Rc1 {[%emt 0:08:51]} Rxc1 {[%emt 0:03:14]} 19. Qxc1 {[%emt 0:00:36][%cal Oa4a5]} Ndc5 {[%emt 0:01:29]} 20. Bc2 {[%emt 0:00:21]} Qd7 {[%emt 0:05:14]} 21. Qa1 {[%emt 0:00:40]} Rc8 {[%emt 0:00:46]} 22. Rd1 {[%emt 0:02:07]} Bd8 {[%emt 0:02:39]} 23. Ne2 {[%emt 0:02:27]} Bf6 {[%emt 0:01:10]} 24. Bxe4 {[%emt 0:07:00]} Nxe4 {[%emt 0:00:17]} 25. Bxf6 {[%emt 0:00:09]} Nxf6 {[%emt 0:00:06]} 26. Nfd4 {[%emt 0:00:31]} Ne4 {[%emt 0:03:07]} 27. Ng3 {[%emt 0:02:41]} Nd6 {[%emt 0:01:12]} 28. h3 {[%emt 0:01:28]} g6 {[%emt 0:01:18]} 29. Nge2 {[%emt 0:01:40]} a5 {[%emt 0:59:50]} 30. Nc3 {[%emt 0:02:35]} Rc4 {[%emt 0:00:00]} 31. Nde2 {[%emt 0:02:00] Excellent horsemanship.} (31. Nb3 $16) 31... Nf5 {[%emt 0:00:00] [#]} (31... Ne8 $11) 32. Qb2 {[%emt 0:03:29]} ({White should play} 32. Nxd5 $1 $16 {White threatens Nf6+ and mate.} Bxd5 33. Nc3) 32... Qb7 {[%emt 0:00:00]} 33. Qxb7 {[%emt 0:13:01] Weighted Error Value: White=0.16 (very precise) /Black=0.13 (very precise) .  Mistake:       	White=3     	Black=1      Inaccurate:     	White=2     	Black=2      OK:         	White=6     	Black=7      Best:        	White=1     	---} (33. Qb5 $5 d4 34. Qxb7 Bxb7 35. exd4 $17) 1/2-1/2

[Event "84th Georgian Championship 2025"]
[Site "Tbilisi"]
[Date "2025.02.04"]
[Round "2.4"]
[White "Tutisani, Noe"]
[Black "Pantsulaia, Levan"]
[Result "0-1"]
[Annotator "TA"]
[ECO "B43"]
[WhiteElo "2439"]
[BlackElo "2522"]
[PlyCount "74"]
[EventDate "2025.02.03"]
[EventType "tourn"]
[EventCountry "GEO"]
[SourceTitle "playchess.com"]
[Source "ChessBase"]
[SourceQuality "1"]
[TimeControl "40/5400+30:1800+30"]

{[%evp 15,74,37,22,31,44,25,60,0,0,-50,-12,-14,0,-9,10,-1,-15,-56,-73,-64,-62,-60,-69,-143,-161,-206,-202,-202,-194,-239,-192,-214,-209,-202,-215,-209,-214,-216,-205,-219,-214,-205,-218,-235,-235,-227,-218,-366,-258,-251,-253,-329,-311,-367,-367,-367,-367,-352,-347,-325,-309]} 1. e4 {[%emt 0:00:04]} c5 {[%emt 0:00:20]} 2. Nf3 {[%emt 0:00:09]} e6 {[%emt 0:00:10]} 3. d4 {[%emt 0:00:06]} cxd4 {[%emt 0:00:06]} 4. Nxd4 {[%emt 0:00:06]} a6 {[%emt 0:00:07]} 5. Nc3 {[%emt 0:01:53]} b5 {[%emt 0:02:12]} 6. Bd3 {[%emt 0:00:35]} Bb7 {[%emt 0:00:07]} 7. O-O {[%emt 0:00:09]} Nc6 {[%emt 0:00:20]} 8. Nxc6 {[%emt 0:01:51]} Bxc6 {[%emt 0:00:13]} 9. Re1 {[%emt 0:00:05] B43: Sicilian: Kan Variation: 5 Nc3.} Ne7 $1 {[%emt 0:00:08][%mdl 4] is now more promising than 9...Bc5.} 10. Bf1 {[%emt 0:01:26]} (10. Be3 $5) 10... Ng6 {[%emt 0:05:06] [#]} 11. Nd5 {[%emt 0:09:38]} Bc5 $11 {[%emt 0:09:27][%cal Oe8g8]} 12. b4 $146 {[%emt 0:11:58]} (12. Qh5 $11) (12. Qh5 d6 13. Bg5 Qd7 14. Rad1 Bxd5 15. exd5 e5 16. Be3 Bxe3 17. Rxe3 Nf4 18. Qf3 {0-1 Najer,E (2659)-Kovalenko,I (2674) Chess.com Rapid Wk8 Swiss 2022 (9)}) 12... Ba7 {[%emt 0:03:32]} (12... Bxf2+ $5 13. Kxf2 Bxd5 $11) 13. Be3 {[%emt 0:13:15]} Qb8 {[%emt 0:06:44]} (13... Bxe3 14. Nxe3 O-O 15. f3 Qb6) 14. Bc5 {[%emt 0:15:27][%cal Od1d4]} f6 {[%emt 0:16:09] [#]} (14... d6 15. Bxa7 Rxa7 16. Ne3 O-O) 15. Qd4 $1 {[%emt 0:06:04][%cal Oa2a4]} Kf7 {[%emt 0:02:44]} (15... d6 {simplifies} 16. Bxa7 Qxa7 17. Rad1 Qxd4 18. Rxd4 Bxd5 19. exd5 e5) 16. c4 {[%emt 0:09:24][%cal Oc4b5]} exd5 {[%emt 0:08:09]} 17. exd5 {[%emt 0:00:05]} Bb7 {[%emt 0:00:03]} 18. cxb5 {[%emt 0:01:57]} axb5 {[%emt 0:00:39]} 19. d6 {[%emt 0:00:51] [#] Black converts the advantage convincingly.} ({White should try} 19. Bxb5 $15 Bxc5 20. bxc5) 19... Bxc5 $1 $17 {[%emt 0:05:58]} 20. Qxc5 {[%emt 0:03:10]} Bc6 {[%emt 0:05:32]} 21. a4 {[%emt 0:00:51]} Rc8 {[%emt 0:00:54]} (21... Rxa4 22. Rxa4 bxa4 23. b5 $16) (21... bxa4 22. b5 Bb7 23. Bc4+ Kf8 24. Ba2 $14) 22. Rac1 {[%emt 0:08:44]} Rxa4 {[%emt 0:07:44] And now ...Re8 would win.} 23. Bxb5 {[%emt 0:00:13]} Qxb5 {[%emt 0:00:11]} 24. Qxb5 {[%emt 0:00:05]} Bxb5 {[%emt 0:00:06]} 25. Rxc8 {[%emt 0:00:03]} Rxb4 {[%emt 0:00:34]} 26. Rb8 {[%emt 0:01:28]} Rb3 {[%emt 0:00:34]} 27. Rb7 {[%emt 0:02:42]} Ba4 {[%emt 0:00:24]} 28. Rxb3 {[%emt 0:00:55]} Bxb3 {[%emt 0:00:10]} 29. f4 {[%emt 0:00:03]} f5 {[%emt 0:00:49]} (29... Nxf4 30. Re7+ Kf8 31. Rxd7 $11) 30. Kf2 {[%emt 0:01:44]} Bd5 {[%emt 0:01:00]} 31. g4 {[%emt 0:00:25]} (31. g3 {keeps fighting.}) 31... Be4 {[%emt 0:00:39]} (31... Nxf4 32. Kg3 Nd3 33. Re7+ Kf6 34. g5+ Kg6 35. Rxd7 f4+ (35... Kxg5 $2 {is the wrong capture.} 36. Rxg7+ Kf6 37. d7 $18) 36. Kh4 $19) 32. Kg3 {[%emt 0:01:22]} Ke6 {[%emt 0:00:54]} 33. gxf5+ {[%emt 0:00:08]} Kxf5 {[%emt 0:00:06]} 34. h4 {[%emt 0:00:05]} Nh8 {[%emt 0:00:47]} ({Weaker is} 34... Nxf4 35. Rf1 $11) 35. h5 {[%emt 0:02:32]} Nf7 {[%emt 0:00:08]} 36. Rd1 {[%emt 0:00:17]} Ke6 {[%emt 0:00:23]} 37. Kf2 {[%emt 0:01:24]} Nxd6 {[%emt 0:00:22] Weighted Error Value: White=0.24 (precise) /Black=0.12 (very precise)   Mistake:       	White=4     	---        Inaccurate:     	White=2     	Black=2      OK:         	White=5     	Black=12     Best:        	White=4     	---} 0-1

[Event "84th Georgian Championship 2025"]
[Site "Tbilisi"]
[Date "2025.02.04"]
[Round "2.5"]
[White "Sanikidze, Tornike"]
[Black "Paichadze, Luka"]
[Result "1-0"]
[Annotator "TA"]
[ECO "E11"]
[WhiteElo "2432"]
[BlackElo "2532"]
[PlyCount "155"]
[EventDate "2025.02.03"]
[EventType "tourn"]
[EventCountry "GEO"]
[SourceTitle "playchess.com"]
[Source "ChessBase"]
[SourceQuality "1"]
[TimeControl "40/5400+30:1800+30"]

{[%evp 9,155,16,37,36,40,33,43,37,39,13,50,38,61,54,64,62,59,58,75,23,41,33,114,109,134,162,245,248,250,153,158,153,229,166,159,177,172,175,181,172,164,170,167,159,165,156,178,187,190,181,181,189,187,187,194,189,187,180,184,162,218,196,229,236,228,176,217,0,231,214,214,229,251,252,272,264,327,319,317,329,301,233,246,238,228,224,228,200,200,220,214,194,185,170,177,191,192,186,213,213,228,268,227,215,215,215,215,215,215,215,215,201,210,0,208,0,206,187,212,208,226,122,118,117,5339,5318,1360,271,309,304,291,29997,282,0,134,0,285,303,285,152,295,289,302,285,758,758,731,730]} 1. d4 {[%emt 0:00:04]} Nf6 {[%emt 0:00:06]} 2. c4 {[%emt 0:00:18]} e6 {[%emt 0:00:05]} 3. Nf3 {[%emt 0:00:25]} Bb4+ {[%emt 0:00:38]} 4. Bd2 {[%emt 0:01:06]} a5 {[%emt 0:00:14]} 5. a3 {[%emt 0:00:49]} Be7 {[%emt 1:31:57]} 6. Nc3 {[%emt 0:00:28] E11: Bogo-Indian.} d5 {[%emt 0:00:00]} 7. Bf4 {[%emt 0:06:23]} O-O {[%emt 0:00:00]} 8. e3 {[%emt 0:03:32] White is slightly better.} b6 {[%emt 0:00:00][%cal Bb7b6,Bb6c5][%mdl 32]} 9. cxd5 {[%emt 0:04:49]} exd5 {[%emt 0:00:00]} 10. Qc2 $146 {[%emt 0:01:38]} (10. Bd3 Bb7 11. h3 c5 12. O-O Nc6 13. Ne5 cxd4 14. Nxc6 Bxc6 15. exd4 Re8 16. Re1 {1-0 Aditya,M (2595)-Pranav,V (2611) Wch Blitz Samarkand 2023 (21)}) 10... c5 {[%emt 0:00:00]} 11. dxc5 {[%emt 0:24:02]} bxc5 {[%emt 0:00:00]} 12. Rd1 {[%emt 0:00:07][%cal Of1c4]} Be6 {[%emt 0:00:00]} 13. Bc4 {[%emt 0:06:54]} Qd7 {[%emt 0:00:00]} 14. O-O {[%emt 0:01:10]} ({Better is} 14. Ng5 $16 Bf5 15. e4) 14... Qb7 $11 {[%emt 0:00:00]} 15. Ba2 {[%emt 0:00:16]} Nbd7 {[%emt 0:00:00]} (15... h6 $1 $14) 16. Ng5 $1 $16 {[%emt 0:03:34][%cal Oc3d5]} Nb6 {[%emt 0:00:00] A sharp opening} 17. e4 {[%emt 0:02:34] White has more active pieces.} h6 {[%emt 0:00:00]} (17... c4 $142 18. exd5 Bxd5) 18. Nxe6 $18 {[%emt 0:02:32]} fxe6 {[%emt 0:00:00]} 19. exd5 {[%emt 0:00:11]} exd5 {[%emt 0:00:00]} 20. Be5 {[%emt 0:20:23]} Rad8 {[%emt 0:00:00]} (20... c4 $16 21. Bd4 Bd8) 21. Bb1 {[%emt 0:04:10] This pair of bishops is nice.} Nbd7 {[%emt 0:00:00] [#]} 22. Rxd5 {[%emt 0:01:50][%cal Oe5f4]} Nxe5 {[%emt 0:00:00]} 23. Rxe5 {[%emt 0:00:05]} Bd6 {[%emt 0:00:00]} 24. Re6 {[%emt 0:02:26]} Rfe8 {[%emt 0:00:00]} 25. Rfe1 {[%emt 0:01:55]} Rxe6 {[%emt 0:00:00]} 26. Rxe6 {[%emt 0:00:01]} Qd7 {[%emt 0:00:00]} 27. Ba2 {[%emt 0:03:23][%cal Re6e8,Bb1a2,Ba2e6,Be6d5,Bd5e4][%mdl 32]} Kh8 {[%emt 0:00:00]} 28. g3 {[%emt 0:00:37]} Re8 {[%emt 0:00:00]} 29. Qf5 {[%emt 0:01:54]} Rxe6 {[%emt 0:00:00]} 30. Bxe6 {[%emt 0:01:51]} Qb7 {[%emt 0:00:00] Black is weak on the light squares} 31. b3 {[%emt 0:00:43]} Qe7 {[%emt 0:00:00]} 32. Nd5 {[%emt 0:05:21]} Nxd5 {[%emt 0:00:00]} 33. Bxd5 {[%emt 0:00:01][%mdl 4096] Endgame KQB-KQB. White is a pawn up.} Qf8 {[%emt 0:00:00]} 34. Qh5 {[%emt 0:01:18]} Qe7 {[%emt 0:04:19]} (34... c4 $142) 35. Kg2 {[%emt 0:00:32]} Be5 {[%emt 0:01:37]} 36. Qf5 {[%emt 0:00:25]} Qe8 {[%emt 0:04:35] Prevents Qc8.} 37. Be4 {[%emt 0:00:34][%csl Ge4][%cal Rf5h7]} Kg8 {[%emt 0:00:41]} 38. Bd5+ {[%emt 0:00:23]} Kh8 {[%emt 0:00:05]} 39. Qe4 {[%emt 0:00:34] Against Bd4} Qb8 {[%emt 0:01:14]} 40. Bc4 {[%emt 0:00:00]} Bd6 {[%emt 0:00:00]} 41. Bd3 {[%emt 0:11:26][%csl Gd3][%cal Re4h7]} Kg8 {[%emt 0:04:15]} 42. Qh7+ {[%emt 0:00:25]} Kf7 {[%emt 0:08:59]} 43. Bc4+ {[%emt 0:00:04]} Kf6 {[%emt 0:00:04]} 44. Qe4 {[%emt 0:00:04] Inhibits Qa8.} Qc8 {[%emt 0:01:33] Against Qe6+} 45. Bd3 {[%emt 0:13:01]} Be5 {[%emt 0:06:18]} 46. Qh4+ {[%emt 0:04:36]} Kf7 {[%emt 0:00:02]} 47. Qh5+ {[%emt 0:00:05]} Kf6 {[%emt 0:00:07]} 48. Qg6+ {[%emt 0:04:10]} Ke7 {[%emt 0:00:03]} 49. Bc4 {[%emt 0:00:10] Inhibits Qe6.} Qb7+ {[%emt 0:05:26]} 50. Kg1 {[%emt 0:00:36]} Kd8 {[%emt 0:01:25]} 51. Qe6 {[%emt 0:01:30]} Bd4 {[%emt 0:00:22]} 52. Qd6+ {[%emt 0:00:03]} Qd7 {[%emt 0:00:48]} 53. Qa6 {[%emt 0:00:46]} Qc7 {[%emt 0:01:10]} 54. Kg2 {[%emt 0:00:36]} Kd7 {[%emt 0:02:56]} 55. Qe6+ {[%emt 0:00:08]} Kd8 {[%emt 0:00:01]} 56. Bb5 {[%emt 0:00:15][%csl Gb5][%cal Re6e8] Against Qd7} Qb7+ {[%emt 0:01:21]} 57. Bc6 {[%emt 0:00:03]} Qe7 {[%emt 0:00:05]} 58. Qg8+ {[%emt 0:00:22]} Kc7 {[%emt 0:00:02]} 59. Qa8 {[%emt 0:00:11]} Qd6 {[%emt 0:03:14]} 60. Qb7+ {[%emt 0:00:43]} (60. Qxa5+ Kxc6 61. Qa6+ Kd7 62. Qb7+ Kd8 63. Qa8+ Ke7 $19) 60... Kd8 {[%emt 0:00:01]} 61. Qa8+ {[%emt 0:01:16]} Kc7 $1 {[%emt 0:00:18]} 62. Qb7+ {[%emt 0:00:07]} (62. Qxa5+ Kxc6 63. Qa6+ Kd7 64. Qb7+ Ke6 65. Qe4+ Kf6 $19) 62... Kd8 {[%emt 0:00:33]} 63. Bb5 {[%emt 0:00:57]} Qc7 {[%emt 0:01:41]} 64. Qd5+ {[%emt 0:00:05]} Ke7 {[%emt 0:00:10] [#]} 65. b4 {[%emt 0:01:15]} axb4 $16 {[%emt 0:02:33]} 66. axb4 {[%emt 0:00:00]} Qa7 $2 {[%emt 0:02:47][%mdl 8192]} (66... cxb4 $16 67. Qe4+ (67. Qxd4 Qb7+ 68. Kg1 Qxb5 $11) 67... Qe5 68. Qb7+ Ke6) 67. Qe4+ $18 {[%emt 0:00:44]} Kd8 {[%emt 0:00:17]} 68. Qe8+ $2 {[%emt 0:00:48]} (68. Qc6 {Black must now prevent Qd6+.} Be5 69. Qe8+ (69. Qxc5 Qxc5 70. bxc5 g5 $18) (69. bxc5 Qf7 $18) 69... Kc7 70. Qxe5+ Kc8 71. Qxc5+ (71. bxc5 Qb7+ 72. c6 Qc7 $18) 71... Qxc5 72. bxc5) 68... Kc7 {[%emt 0:00:01]} 69. Qd7+ {[%emt 0:00:36]} Kb8 {[%emt 0:00:02]} 70. Qd8+ $1 {[%emt 0:00:25]} Kb7 {[%emt 0:00:01]} 71. Qd7+ {[%emt 0:00:05]} (71. Bd7 $18 {has better winning chances. Intending Qc8+ and mate.} Qb6 72. Qc8+ Ka7 73. Bc6) 71... Kb8 $16 {[%emt 0:00:04]} 72. Qd8+ $2 {[%emt 0:00:39]} (72. Qe6 $16) 72... Kb7 $18 {[%emt 0:00:27]} 73. Bd7 $1 {[%emt 0:00:53]} Qb6 {[%emt 0:02:18] [#]} 74. Qc8+ $1 {[%emt 0:00:10]} Ka7 {[%emt 0:00:01] [#]} 75. Bc6 $1 {[%emt 0:00:06]} Qb8 {[%emt 0:00:05]} 76. Qd7+ {[%emt 0:00:37]} Kb6 $2 {[%emt 0:00:01]} (76... Ka6 77. h4 (77. bxc5 Bxc5 78. Qxg7 Qb6 $18) 77... g6) 77. Bf3 {[%emt 0:00:29]} Qc7 {[%emt 0:00:23] Prevents Qc6+} 78. Qa4 {[%emt 0:00:18] Weighted Error Value: White=0.14 (very precise) /Black=0.13 (very precise)   Loses game:     	---       	Black=3      Mistake:       	White=4     	Black=5      Inaccurate:     	White=2     	Black=2      OK:         	White=29    	Black=23     Best:        	White=4     	Black=11     Strong:       	White=5     	Black=1} 1-0